[Event "European Rapid Championship 2021"]
[Site "Katowice"]
[Date "2021.12.19"]
[Round "9.8"]
[White "Lewtak, Dominik"]
[Black "Janaszak, Dawid"]
[Result "1/2-1/2"]
[ECO "A48"]
[WhiteElo "2165"]
[BlackElo "2328"]
[Annotator "NA"]
[PlyCount "134"]
[EventDate "2021.12.18"]
[EventType "swiss"]
[EventCountry "POL"]
[SourceTitle "playchess.com"]
[Source "ChessBase"]
[SourceQuality "1"]
[TimeControl "900+10"]

1. d4 {[%emt 0:00:02]} Nf6 {[%emt 0:00:01]} 2. Nf3 {[%emt 0:00:04]} g6 {
[%emt 0:00:03]} 3. c4 {[%emt 0:00:09]} c5 {[%emt 0:00:36]} 4. dxc5 {[%emt 0:00:
12]} Na6 {[%emt 0:00:20]} 5. Nc3 {[%emt 0:00:19]} Nxc5 {[%emt 0:00:25]} 6. b4 {
[%emt 0:00:19]} Ne6 {[%emt 0:01:07]} 7. e3 {[%emt 0:00:07]} a5 {[%emt 0:00:15]}
8. bxa5 {[%emt 0:00:17]} Bg7 {[%emt 0:00:20]} 9. Rb1 {[%emt 0:01:06]} Qxa5 {
[%emt 0:00:27]} 10. Bd2 {[%emt 0:00:10]} O-O {[%emt 0:00:21]} 11. Be2 {[%emt 0:
00:11]} Qc5 {[%emt 0:02:55]} 12. O-O {[%emt 0:01:04]} d6 {[%emt 0:00:03]} 13.
Qc2 {[%emt 0:00:24]} Nc7 {[%emt 0:01:35]} 14. Nd4 {[%emt 0:01:19]} Ng4 {
[%emt 0:03:49]} 15. Na4 {[%emt 0:00:37]} Qe5 {[%emt 0:00:35]} 16. Bxg4 {
[%emt 0:02:28]} Bxg4 {[%emt 0:00:02]} 17. Rxb7 {[%emt 0:00:13]} Ne6 {[%emt 0:
01:19]} 18. Nc6 {[%emt 0:01:45]} Qg5 {[%emt 0:00:22]} 19. f4 {[%emt 0:00:46]}
Qh5 {[%emt 0:00:17]} 20. Nxe7+ {[%emt 0:00:14]} Kh8 {[%emt 0:00:01]} 21. Bc3 {
[%emt 0:00:59]} f6 {[%emt 0:00:38]} 22. Rb5 {[%emt 0:01:41]} Nc5 {[%emt 0:00:
05]} 23. Nxc5 {[%emt 0:01:11]} dxc5 {[%emt 0:00:01]} 24. Bd4 {[%emt 0:00:29]}
Bd7 {[%emt 0:01:00]} 25. Rxc5 {[%emt 0:00:10]} Qg4 {[%emt 0:00:01]} 26. Nd5 {
[%emt 0:00:50]} Ba4 {[%emt 0:00:03]} 27. Qc3 {[%emt 0:00:14]} Ra6 {[%emt 0:00:
28]} 28. Ra5 {[%emt 0:00:10]} Rxa5 {[%emt 0:01:03]} 29. Qxa5 {[%emt 0:00:01]}
Bc6 {[%emt 0:00:05]} 30. Qb6 {[%emt 0:00:35]} Rc8 {[%emt 0:00:34]} 31. h3 {
[%emt 0:00:09]} Qe2 {[%emt 0:00:01]} 32. Qb3 {[%emt 0:00:20]} h5 {[%emt 0:00:
44]} 33. Qb2 {[%emt 0:00:21]} Qxc4 {[%emt 0:00:16]} 34. Nxf6 {[%emt 0:00:04]}
Ra8 {[%emt 0:00:30]} 35. a3 {[%emt 0:00:06]} Rf8 {[%emt 0:00:16]} 36. e4 {
[%emt 0:00:30]} Bxe4 {[%emt 0:00:06]} 37. Rc1 {[%emt 0:00:12]} Qd3 {[%emt 0:00:
03]} 38. Rc7 {[%emt 0:00:32]} Qb1+ {[%emt 0:00:30]} 39. Qxb1 {[%emt 0:00:03]}
Bxb1 {[%emt 0:00:01]} 40. Rxg7 {[%emt 0:00:24]} Kxg7 {[%emt 0:00:01]} 41. Nd7+
{[%emt 0:00:01]} Kf7 {[%emt 0:00:01]} 42. Nxf8 {[%emt 0:00:03]} Kxf8 {[%emt 0:
00:01]} 43. a4 {[%emt 0:00:09]} Ke8 {[%emt 0:00:03]} 44. a5 {[%emt 0:00:01]}
Kd7 {[%emt 0:00:09]} 45. Kf2 {[%emt 0:00:06]} Kc6 {[%emt 0:00:03]} 46. a6 {
[%emt 0:00:07]} Bd3 {[%emt 0:00:03]} 47. a7 {[%emt 0:00:03]} Kb7 {[%emt 0:00:
01]} 48. Kg3 {[%emt 0:00:08]} Be4 {[%emt 0:00:01]} 49. Kf2 {[%emt 0:00:20]} Ka8
{[%emt 0:00:05]} 50. g4 {[%emt 0:01:21]} hxg4 {[%emt 0:00:02]} 51. h4 {[%emt 0:
00:01]} Bc2 {[%emt 0:00:30]} 52. Kg3 {[%emt 0:00:13]} Bf5 {[%emt 0:00:02]} 53.
Bg1 {[%emt 0:00:05]} Be6 {[%emt 0:00:04]} 54. Be3 {[%emt 0:00:12]} Bf5 {
[%emt 0:00:01]} 55. Kf2 {[%emt 0:00:02]} Be6 {[%emt 0:00:06]} 56. Ke2 {[%emt 0:
00:04]} Bc4+ {[%emt 0:00:03]} 57. Kd2 {[%emt 0:00:03]} Be6 {[%emt 0:00:26]} 58.
Kc3 {[%emt 0:00:01]} g3 {[%emt 0:00:09]} 59. Kd4 {[%emt 0:00:05]} Bb3 {[%emt 0:
00:54]} 60. Ke5 {[%emt 0:00:12]} Bc2 {[%emt 0:00:03]} 61. Kf6 {[%emt 0:00:01]}
Bd3 {[%emt 0:00:07]} 62. Kg5 {[%emt 0:00:03]} g2 {[%emt 0:00:12]} 63. Kg4 {
[%emt 0:00:05]} Be4 {[%emt 0:00:13]} 64. Kg3 {[%emt 0:00:02]} Kb7 {[%emt 0:00:
05]} 65. f5 {[%emt 0:00:13]} Bxf5 {[%emt 0:00:11]} 66. Kxg2 {[%emt 0:00:09]}
Bg4 {[%emt 0:00:02]} 67. Kg3 {[%emt 0:00:01]} Bh5 {[%emt 0:00:01]} 1/2-1/2

[Event "European Rapid Championship 2021"]
[Site "Katowice"]
[Date "2021.12.19"]
[Round "9.9"]
[White "Tazbir, Marcin"]
[Black "Bjerre, Jonas Buhl"]
[Result "1/2-1/2"]
[ECO "A36"]
[WhiteElo "2514"]
[BlackElo "2330"]
[Annotator "ChessBase"]
[PlyCount "111"]
[EventDate "2021.12.18"]
[EventType "swiss"]
[EventCountry "POL"]
[SourceTitle "playchess.com"]
[Source "ChessBase"]
[SourceQuality "1"]
[TimeControl "900+10"]

1. c4 {[%emt 0:00:02]} c5 {[%emt 0:00:01]} 2. g3 {[%emt 0:00:01]} Nc6 {[%emt 0:
00:02]} 3. Bg2 {[%emt 0:00:02]} g6 {[%emt 0:00:00]} 4. Nc3 {[%emt 0:00:01]} Bg7
{[%emt 0:00:01]} 5. e3 {[%emt 0:00:01]} e6 {[%emt 0:00:18]} 6. Nge2 {[%emt 0:
00:01]} Nge7 {[%emt 0:00:01]} 7. Nf4 {[%emt 0:00:01]} O-O {[%emt 0:00:15]} 8.
O-O {[%emt 0:00:37]} a6 {[%emt 0:00:02]} 9. b3 {[%emt 0:00:13]} b5 {[%emt 0:00:
30]} 10. Rb1 {[%emt 0:00:47]} Rb8 {[%emt 0:00:18]} 11. Qe2 {[%emt 0:00:28]}
bxc4 {[%emt 0:03:07]} 12. Qxc4 {[%emt 0:00:07]} Qa5 {[%emt 0:00:36]} 13. Na4 {
[%emt 0:00:31]} d6 {[%emt 0:00:38]} 14. d4 {[%emt 0:00:20]} e5 {[%emt 0:01:05]}
15. dxe5 {[%emt 0:02:01]} Nxe5 {[%emt 0:00:02]} 16. Qc2 {[%emt 0:00:01]} Bf5 {
[%emt 0:00:06]} 17. e4 {[%emt 0:00:02]} Bd7 {[%emt 0:00:33]} 18. Bd2 {[%emt 0:
00:07]} Qc7 {[%emt 0:00:31]} 19. Nc3 {[%emt 0:00:01]} Bb5 {[%emt 0:00:32]} 20.
Rfe1 {[%emt 0:00:40]} N7c6 {[%emt 0:00:10]} 21. Nxb5 {[%emt 0:01:18]} axb5 {
[%emt 0:00:04]} 22. Bc3 {[%emt 0:00:02]} Qa7 {[%emt 0:00:33]} 23. Red1 {
[%emt 0:03:36]} b4 {[%emt 0:00:44]} 24. Ba1 {[%emt 0:00:09]} Nd4 {[%emt 0:00:
22]} 25. Bxd4 {[%emt 0:00:02]} cxd4 {[%emt 0:00:01]} 26. Rbc1 {[%emt 0:00:01]}
Ra8 {[%emt 0:02:19]} 27. Rd2 {[%emt 0:00:25]} Bh6 {[%emt 0:00:31]} 28. Qd1 {
[%emt 0:01:20]} Rfc8 {[%emt 0:00:47]} 29. Rxc8+ {[%emt 0:01:40]} Rxc8 {[%emt 0:
00:01]} 30. h3 {[%emt 0:00:01]} d3 {[%emt 0:00:50]} 31. Qb1 {[%emt 0:00:26]}
Rc3 {[%emt 0:00:54]} 32. Rd1 {[%emt 0:00:09]} Qd4 {[%emt 0:00:31]} 33. Qb2 {
[%emt 0:01:36]} Qc5 {[%emt 0:00:43]} 34. Qd2 {[%emt 0:00:41]} Rc2 {[%emt 0:00:
02]} 35. Qe1 {[%emt 0:00:01]} Qd4 {[%emt 0:01:57]} 36. Qe3 {[%emt 0:00:17]}
Qxe3 {[%emt 0:00:31]} 37. fxe3 {[%emt 0:00:02]} Rxa2 {[%emt 0:00:09]} 38. Nxd3
{[%emt 0:00:04]} Bxe3+ {[%emt 0:00:03]} 39. Kh2 {[%emt 0:00:03]} Bd2 {[%emt 0:
00:33]} 40. Nxe5 {[%emt 0:00:22]} dxe5 {[%emt 0:00:00]} 41. Kh1 {[%emt 0:00:21]
} Rb2 {[%emt 0:00:10]} 42. Bf1 {[%emt 0:00:01]} Kg7 {[%emt 0:00:17]} 43. Bc4 {
[%emt 0:00:16]} f5 {[%emt 0:00:06]} 44. exf5 {[%emt 0:00:02]} gxf5 {[%emt 0:00:
01]} 45. Rf1 {[%emt 0:00:01]} f4 {[%emt 0:00:16]} 46. gxf4 {[%emt 0:00:07]}
Bxf4 {[%emt 0:00:03]} 47. Rg1+ {[%emt 0:00:01]} Kf6 {[%emt 0:00:11]} 48. Rg2 {
[%emt 0:00:00]} Bd2 {[%emt 0:00:01]} 49. Rf2+ {[%emt 0:00:10]} Ke7 {[%emt 0:00:
20]} 50. Bd3 {[%emt 0:00:01]} h6 {[%emt 0:00:05]} 51. Kg2 {[%emt 0:00:13]} Kd6
{[%emt 0:00:04]} 52. Re2 {[%emt 0:00:18]} Kd5 {[%emt 0:00:11]} 53. Bc4+ {
[%emt 0:00:01]} Kd4 {[%emt 0:01:09]} 54. Kf3 {[%emt 0:00:01]} Bc3 {[%emt 0:00:
15]} 55. Rxb2 {[%emt 0:00:04]} Bxb2 {[%emt 0:00:02]} 56. Ke2 {[%emt 0:00:05]}
1/2-1/2

[Event "European Rapid Championship 2021"]
[Site "Katowice"]
[Date "2021.12.19"]
[Round "9.9"]
[White "Walter, Szymon"]
[Black "Samborski, Henryk"]
[Result "1-0"]
[ECO "B23"]
[WhiteElo "2203"]
[BlackElo "2029"]
[Annotator "NA"]
[PlyCount "61"]
[EventDate "2021.12.18"]
[EventType "swiss"]
[EventCountry "POL"]
[SourceTitle "playchess.com"]
[Source "ChessBase"]
[SourceQuality "1"]
[TimeControl "900+10"]

1. e4 {[%emt 0:00:02]} c5 {[%emt 0:00:10]} 2. Nc3 {[%emt 0:00:04]} Nc6 {
[%emt 0:00:07]} 3. f4 {[%emt 0:00:04]} g6 {[%emt 0:00:21]} 4. Nf3 {[%emt 0:00:
03]} Bg7 {[%emt 0:00:02]} 5. Bb5 {[%emt 0:00:02]} Nd4 {[%emt 0:01:26]} 6. O-O {
[%emt 0:00:03]} Nxb5 {[%emt 0:01:38]} 7. Nxb5 {[%emt 0:00:02]} a6 {[%emt 0:00:
16]} 8. Nc3 {[%emt 0:00:02]} d6 {[%emt 0:00:38]} 9. d3 {[%emt 0:00:04]} Nf6 {
[%emt 0:00:46]} 10. Qe1 {[%emt 0:00:06]} Bg4 {[%emt 0:03:10]} 11. Nd2 {[%emt 0:
00:07]} O-O {[%emt 0:00:46]} 12. f5 {[%emt 0:00:19]} gxf5 {[%emt 0:00:09]} 13.
h3 {[%emt 0:00:04]} Bh5 {[%emt 0:01:10]} 14. exf5 {[%emt 0:00:02]} d5 {[%emt 0:
00:06]} 15. g4 {[%emt 0:00:24]} Bxg4 {[%emt 0:00:09]} 16. hxg4 {[%emt 0:00:02]}
Nxg4 {[%emt 0:00:02]} 17. Qg3 {[%emt 0:00:29]} Kh8 {[%emt 0:00:41]} 18. Qxg4 {
[%emt 0:01:16]} Bxc3 {[%emt 0:00:05]} 19. Kh1 {[%emt 0:00:16]} Rg8 {[%emt 0:00:
15]} 20. Qh5 {[%emt 0:00:14]} Bf6 {[%emt 0:01:34]} 21. Nf3 {[%emt 0:00:22]} Qd6
{[%emt 0:00:39]} 22. Bg5 {[%emt 0:00:47]} Rg7 {[%emt 0:01:30]} 23. Rg1 {
[%emt 0:01:03]} Rag8 {[%emt 0:00:28]} 24. Bxf6 {[%emt 0:01:22]} Qxf6 {[%emt 0:
00:05]} 25. Rxg7 {[%emt 0:00:50]} Rxg7 {[%emt 0:00:04]} 26. c3 {[%emt 0:00:38]}
e5 {[%emt 0:00:31]} 27. fxe6 {[%emt 0:03:16]} fxe6 {[%emt 0:00:05]} 28. Rg1 {
[%emt 0:00:16]} Rxg1+ {[%emt 0:01:33]} 29. Kxg1 {[%emt 0:00:03]} b5 {[%emt 0:
00:25]} 30. d4 {[%emt 0:01:54]} cxd4 {[%emt 0:00:18]} 31. cxd4 {[%emt 0:00:04]}
1-0

[Event "European Rapid Championship 2021"]
[Site "Katowice"]
[Date "2021.12.19"]
[Round "9.10"]
[White "Kyc, Jerzy"]
[Black "Schneider, Ilja"]
[Result "1-0"]
[ECO "C41"]
[WhiteElo "2308"]
[BlackElo "2490"]
[Annotator "ChessBase"]
[PlyCount "55"]
[EventDate "2021.12.18"]
[EventType "swiss"]
[EventCountry "POL"]
[SourceTitle "playchess.com"]
[Source "ChessBase"]
[SourceQuality "1"]
[TimeControl "900+10"]

1. e4 {[%emt 0:00:02]} e5 {[%emt 0:00:01]} 2. Nf3 {[%emt 0:00:01]} d6 {[%emt 0:
00:04]} 3. d4 {[%emt 0:00:08]} exd4 {[%emt 0:00:01]} 4. Nxd4 {[%emt 0:00:01]}
Nf6 {[%emt 0:00:01]} 5. Nc3 {[%emt 0:00:02]} Be7 {[%emt 0:00:00]} 6. Be2 {
[%emt 0:00:08]} O-O {[%emt 0:00:03]} 7. O-O {[%emt 0:00:03]} Re8 {[%emt 0:00:
01]} 8. f4 {[%emt 0:00:13]} Bf8 {[%emt 0:00:03]} 9. Bf3 {[%emt 0:00:04]} c5 {
[%emt 0:00:01]} 10. Nb3 {[%emt 0:01:12]} Nc6 {[%emt 0:00:03]} 11. Kh1 {[%emt 0:
00:25]} a5 {[%emt 0:02:59]} 12. a4 {[%emt 0:00:12]} Nb4 {[%emt 0:00:42]} 13.
Be3 {[%emt 0:00:47]} d5 {[%emt 0:01:17]} 14. Bxc5 {[%emt 0:01:07]} dxe4 {
[%emt 0:01:06]} 15. Qxd8 {[%emt 0:01:11]} Rxd8 {[%emt 0:00:01]} 16. Nxe4 {
[%emt 0:00:17]} Nxc2 {[%emt 0:01:05]} 17. Nxf6+ {[%emt 0:00:23]} gxf6 {[%emt 0:
00:01]} 18. Rac1 {[%emt 0:00:26]} Be6 {[%emt 0:01:02]} 19. Bxf8 {[%emt 0:00:11]
} Bxb3 {[%emt 0:00:05]} 20. Be7 {[%emt 0:00:13]} Rd7 {[%emt 0:00:44]} 21. Bxf6
{[%emt 0:00:11]} Bxa4 {[%emt 0:02:05]} 22. Bd1 {[%emt 0:00:25]} Rc7 {[%emt 0:
00:02]} 23. Rf3 {[%emt 0:05:02]} Rc6 {[%emt 0:01:35]} 24. Rg3+ {[%emt 0:00:11]}
Kf8 {[%emt 0:00:01]} 25. Bg7+ Ke7 26. Bc3 {[%emt 0:01:51]} Rd8 {[%emt 0:00:41]}
27. h3 {[%emt 0:00:17]} Rxc3 {[%emt 0:02:55]} 28. Rxc3 {[%emt 0:00:06]} 1-0

[Event "European Rapid Championship 2021"]
[Site "Katowice"]
[Date "2021.12.19"]
[Round "9.10"]
[White "Karolczuk, Iwo"]
[Black "Paszewski, Mateusz"]
[Result "1/2-1/2"]
[ECO "D12"]
[WhiteElo "2007"]
[BlackElo "2202"]
[Annotator "NA"]
[PlyCount "33"]
[EventDate "2021.12.18"]
[EventType "swiss"]
[EventCountry "POL"]
[SourceTitle "playchess.com"]
[Source "ChessBase"]
[SourceQuality "1"]
[TimeControl "900+10"]

1. d4 {[%emt 0:00:02]} d5 {[%emt 0:00:07]} 2. Nf3 {[%emt 0:00:03]} Nf6 {
[%emt 0:00:05]} 3. c4 {[%emt 0:00:03]} c6 {[%emt 0:00:01]} 4. e3 {[%emt 0:00:
01]} Bf5 {[%emt 0:00:01]} 5. Bd3 {[%emt 0:00:03]} Bg6 {[%emt 0:00:20]} 6. Qc2 {
[%emt 0:00:25]} e6 {[%emt 0:00:06]} 7. Nbd2 {[%emt 0:00:02]} Nbd7 {[%emt 0:00:
22]} 8. b3 {[%emt 0:00:05]} Bd6 {[%emt 0:00:11]} 9. Bb2 {[%emt 0:00:04]} Qe7 {
[%emt 0:00:04]} 10. Bxg6 {[%emt 0:02:27]} hxg6 {[%emt 0:00:00]} 11. O-O {
[%emt 0:00:23]} Rd8 {[%emt 0:04:51]} 12. e4 {[%emt 0:00:42]} dxe4 {[%emt 0:00:
04]} 13. Nxe4 {[%emt 0:00:03]} Nxe4 {[%emt 0:00:02]} 14. Qxe4 {[%emt 0:00:02]}
Ba3 {[%emt 0:00:05]} 15. Bxa3 {[%emt 0:00:42]} Qxa3 {[%emt 0:00:01]} 16. Rfe1 {
[%emt 0:00:22]} Nf6 {[%emt 0:01:51]} 17. Qf4 {[%emt 0:01:38]} 1/2-1/2

[Event "European Rapid Championship 2021"]
[Site "Katowice"]
[Date "2021.12.19"]
[Round "9.11"]
[White "Vetoshko, Volodymyr"]
[Black "Kozak, Antoni"]
[Result "1-0"]
[ECO "B13"]
[WhiteElo "2483"]
[BlackElo "2356"]
[Annotator "ChessBase"]
[PlyCount "59"]
[EventDate "2021.12.18"]
[EventType "swiss"]
[EventCountry "POL"]
[SourceTitle "playchess.com"]
[Source "ChessBase"]
[SourceQuality "1"]
[TimeControl "900+10"]

1. e4 {[%emt 0:00:01]} c6 {[%emt 0:00:01]} 2. d4 {[%emt 0:00:01]} d5 {[%emt 0:
00:01]} 3. exd5 {[%emt 0:00:01]} cxd5 {[%emt 0:00:00]} 4. Bd3 {[%emt 0:00:01]}
Nc6 {[%emt 0:00:01]} 5. c3 {[%emt 0:00:00]} Qc7 {[%emt 0:00:01]} 6. h3 {
[%emt 0:00:13]} Nf6 {[%emt 0:00:06]} 7. Nf3 {[%emt 0:00:02]} g6 {[%emt 0:00:01]
} 8. O-O {[%emt 0:00:02]} Bf5 {[%emt 0:00:00]} 9. Ne5 Nxe5 10. dxe5 {[%emt 0:
00:01]} Qxe5 {[%emt 0:00:03]} 11. Bb5+ {[%emt 0:00:01]} Bd7 {[%emt 0:00:01]}
12. Bxd7+ {[%emt 0:00:04]} Nxd7 {[%emt 0:00:01]} 13. Re1 {[%emt 0:00:00]} Qd6 {
[%emt 0:00:29]} 14. c4 {[%emt 0:00:01]} Bg7 {[%emt 0:04:57]} 15. cxd5 {[%emt 0:
04:06]} O-O {[%emt 0:00:10]} 16. Nc3 {[%emt 0:00:10]} Nf6 {[%emt 0:04:13]} 17.
Qf3 {[%emt 0:00:02]} Rfd8 {[%emt 0:00:48]} 18. Bf4 {[%emt 0:00:15]} Qb4 {
[%emt 0:00:03]} 19. Be5 {[%emt 0:01:46]} Nh5 {[%emt 0:03:47]} 20. a3 {[%emt 0:
02:42]} Qxb2 {[%emt 0:01:18]} 21. Rab1 {[%emt 0:00:30]} Qxa3 {[%emt 0:00:22]}
22. Rxb7 {[%emt 0:00:21]} Rac8 {[%emt 0:01:15]} 23. Bxg7 {[%emt 0:02:43]} Nxg7
{[%emt 0:00:01]} 24. Rexe7 {[%emt 0:00:46]} Nf5 {[%emt 0:00:46]} 25. Rec7 {
[%emt 0:00:15]} a5 {[%emt 0:00:38]} 26. Qf4 {[%emt 0:03:20]} Nd6 {[%emt 0:00:
12]} 27. Nb5 {[%emt 0:00:36]} Qa1+ {[%emt 0:00:09]} 28. Kh2 {[%emt 0:00:01]}
Rxc7 {[%emt 0:00:02]} 29. Rxc7 {[%emt 0:00:04]} Nxb5 30. Qxf7+ {[%emt 0:00:02]}
1-0

[Event "European Rapid Championship 2021"]
[Site "Katowice"]
[Date "2021.12.19"]
[Round "9.11"]
[White "Kos, Pawel"]
[Black "Rozman, Monika"]
[Result "1-0"]
[ECO "D02"]
[WhiteElo "2199"]
[BlackElo "1998"]
[Annotator "NA"]
[PlyCount "145"]
[EventDate "2021.12.18"]
[EventType "swiss"]
[EventCountry "POL"]
[SourceTitle "playchess.com"]
[Source "ChessBase"]
[SourceQuality "1"]
[TimeControl "900+10"]

1. Nf3 {[%emt 0:00:02]} d5 {[%emt 0:00:01]} 2. d4 {[%emt 0:00:03]} Nf6 {
[%emt 0:00:02]} 3. g3 {[%emt 0:00:01]} Bf5 {[%emt 0:00:04]} 4. Bg2 {[%emt 0:00:
02]} e6 {[%emt 0:00:03]} 5. O-O {[%emt 0:00:04]} Be7 {[%emt 0:00:18]} 6. c4 {
[%emt 0:00:44]} c6 {[%emt 0:00:02]} 7. Nc3 {[%emt 0:00:28]} h6 {[%emt 0:00:01]}
8. Ne5 {[%emt 0:01:03]} O-O {[%emt 0:00:18]} 9. h3 {[%emt 0:00:19]} Nbd7 {
[%emt 0:00:20]} 10. Kh2 {[%emt 0:03:15]} Nxe5 {[%emt 0:01:31]} 11. dxe5 {
[%emt 0:00:01]} Ne4 {[%emt 0:00:02]} 12. Nxe4 {[%emt 0:01:19]} dxe4 {[%emt 0:
00:03]} 13. Qxd8 {[%emt 0:00:28]} Rfxd8 {[%emt 0:00:19]} 14. Be3 {[%emt 0:00:
05]} Bg5 {[%emt 0:01:13]} 15. Bxg5 {[%emt 0:03:19]} hxg5 {[%emt 0:00:01]} 16.
Rfd1 {[%emt 0:00:02]} Kf8 {[%emt 0:01:02]} 17. e3 {[%emt 0:01:33]} Ke7 {
[%emt 0:00:32]} 18. g4 {[%emt 0:01:30]} Bg6 {[%emt 0:00:08]} 19. Kg1 {[%emt 0:
00:10]} Rac8 {[%emt 0:02:37]} 20. Kf1 {[%emt 0:00:04]} c5 {[%emt 0:02:59]} 21.
Ke1 {[%emt 0:00:07]} a6 {[%emt 0:00:30]} 22. Bf1 {[%emt 0:00:17]} Rc7 {[%emt 0:
00:56]} 23. Rxd8 {[%emt 0:00:49]} Kxd8 {[%emt 0:00:01]} 24. Kd2 {[%emt 0:00:24]
} Rd7+ {[%emt 0:00:04]} 25. Kc3 {[%emt 0:00:02]} Kc7 {[%emt 0:00:01]} 26. Be2 {
[%emt 0:00:14]} Kc6 {[%emt 0:00:09]} 27. a4 {[%emt 0:00:21]} Kb6 {[%emt 0:00:
24]} 28. a5+ {[%emt 0:00:03]} Kc6 {[%emt 0:00:00]} 29. h4 {[%emt 0:00:16]} gxh4
{[%emt 0:00:21]} 30. Rh1 {[%emt 0:00:01]} b5 {[%emt 0:00:51]} 31. axb6 {
[%emt 0:00:02]} Kxb6 {[%emt 0:00:01]} 32. Rxh4 {[%emt 0:00:08]} Rd8 {[%emt 0:
00:00]} 33. g5 {[%emt 0:00:58]} Kc6 {[%emt 0:00:02]} 34. Kc2 {[%emt 0:00:14]}
Kb6 {[%emt 0:00:01]} 35. Rh1 {[%emt 0:00:40]} Ka5 {[%emt 0:00:06]} 36. Kc3 {
[%emt 0:00:02]} Kb6 {[%emt 0:00:01]} 37. Rh2 {[%emt 0:00:24]} Kc6 {[%emt 0:00:
15]} 38. Rh4 {[%emt 0:00:04]} Kb6 {[%emt 0:00:01]} 39. Rh1 {[%emt 0:00:06]} Kc6
{[%emt 0:00:01]} 40. Bh5 {[%emt 0:00:34]} Bxh5 {[%emt 0:02:20]} 41. Rxh5 {
[%emt 0:00:01]} Rd1 {[%emt 0:00:01]} 42. Rh4 {[%emt 0:01:21]} Rg1 {[%emt 0:00:
03]} 43. Rf4 {[%emt 0:00:02]} Rxg5 {[%emt 0:00:20]} 44. Rxf7 {[%emt 0:00:01]}
Rxe5 {[%emt 0:01:53]} 45. Rxg7 {[%emt 0:00:03]} Rf5 {[%emt 0:00:05]} 46. Ra7 {
[%emt 0:00:37]} Kb6 {[%emt 0:00:43]} 47. Rd7 {[%emt 0:00:02]} Kc6 {[%emt 0:00:
02]} 48. Rd2 {[%emt 0:00:19]} Rf8 {[%emt 0:00:40]} 49. b3 {[%emt 0:00:12]} Rf6
{[%emt 0:00:50]} 50. Ra2 {[%emt 0:00:02]} Kb6 {[%emt 0:00:01]} 51. Rd2 {
[%emt 0:00:01]} Ka5 {[%emt 0:00:17]} 52. Rd6 {[%emt 0:00:13]} Rxf2 {[%emt 0:00:
31]} 53. Rxe6 {[%emt 0:00:01]} Rf1 {[%emt 0:00:16]} 54. Rxe4 {[%emt 0:00:16]}
Rc1+ {[%emt 0:00:02]} 55. Kb2 {[%emt 0:00:04]} Rh1 {[%emt 0:00:01]} 56. Re6 {
[%emt 0:00:06]} Kb4 {[%emt 0:00:05]} 57. Rb6+ {[%emt 0:00:01]} Ka5 {[%emt 0:00:
01]} 58. Rb8 {[%emt 0:00:11]} Re1 {[%emt 0:00:01]} 59. Re8 {[%emt 0:00:30]} Kb4
{[%emt 0:00:01]} 60. Kc2 {[%emt 0:00:10]} Re2+ {[%emt 0:00:51]} 61. Kd3 {
[%emt 0:00:01]} Rb2 {[%emt 0:00:16]} 62. Rb8+ {[%emt 0:00:05]} Ka3 {[%emt 0:00:
01]} 63. e4 {[%emt 0:00:39]} a5 {[%emt 0:00:01]} 64. Rb5 {[%emt 0:00:04]} Rb1 {
[%emt 0:00:50]} 65. Rxa5+ {[%emt 0:00:07]} Kb2 {[%emt 0:00:02]} 66. Rxc5 {
[%emt 0:00:12]} Rd1+ {[%emt 0:00:01]} 67. Ke2 {[%emt 0:00:02]} Rd4 {[%emt 0:00:
15]} 68. Ke3 {[%emt 0:00:01]} Rd1 {[%emt 0:00:00]} 69. Rb5 {[%emt 0:00:02]} Kc3
{[%emt 0:00:02]} 70. e5 {[%emt 0:00:12]} Re1+ {[%emt 0:00:02]} 71. Kf4 {
[%emt 0:00:01]} Kd4 {[%emt 0:00:11]} 72. Kf5 {[%emt 0:00:03]} Rxe5+ {[%emt 0:
00:20]} 73. Rxe5 {[%emt 0:00:02]} 1-0

[Event "European Rapid Championship 2021"]
[Site "Katowice"]
[Date "2021.12.19"]
[Round "9.12"]
[White "Budzisz, Adrian"]
[Black "Danielyan, Vahe"]
[Result "0-1"]
[ECO "B24"]
[WhiteElo "1985"]
[BlackElo "2198"]
[Annotator "NA"]
[PlyCount "60"]
[EventDate "2021.12.18"]
[EventType "swiss"]
[EventCountry "POL"]
[SourceTitle "playchess.com"]
[Source "ChessBase"]
[SourceQuality "1"]
[TimeControl "900+10"]

1. e4 {[%emt 0:00:03]} c5 {[%emt 0:00:13]} 2. Nc3 {[%emt 0:00:14]} Nc6 {
[%emt 0:00:02]} 3. Bb5 {[%emt 0:00:01]} Nd4 {[%emt 0:00:01]} 4. Nge2 {[%emt 0:
00:04]} e6 {[%emt 0:00:19]} 5. Nxd4 {[%emt 0:00:05]} cxd4 {[%emt 0:00:02]} 6.
Ne2 {[%emt 0:00:01]} g6 {[%emt 0:00:41]} 7. O-O {[%emt 0:00:19]} Bg7 {[%emt 0:
00:01]} 8. f4 {[%emt 0:00:34]} Ne7 {[%emt 0:00:05]} 9. Bd3 {[%emt 0:00:19]} d6
{[%emt 0:00:08]} 10. b3 {[%emt 0:00:25]} O-O {[%emt 0:00:47]} 11. Bb2 {[%emt 0:
00:00]} Nc6 {[%emt 0:03:11]} 12. a3 {[%emt 0:00:22]} Qh4 {[%emt 0:00:41]} 13.
Ng3 {[%emt 0:01:06]} Bd7 {[%emt 0:00:29]} 14. Rf2 {[%emt 0:01:11]} e5 {[%emt 0:
00:48]} 15. f5 {[%emt 0:00:15]} Bh6 {[%emt 0:00:02]} 16. Qf3 {[%emt 0:00:33]}
Ne7 {[%emt 0:01:06]} 17. Re1 {[%emt 0:04:52]} Kh8 {[%emt 0:00:44]} 18. a4 {
[%emt 0:00:25]} gxf5 {[%emt 0:03:06]} 19. Nxf5 {[%emt 0:00:03]} Nxf5 {[%emt 0:
00:09]} 20. exf5 {[%emt 0:00:02]} Bc6 {[%emt 0:01:16]} 21. Be4 {[%emt 0:00:01]}
Rg8 {[%emt 0:00:51]} 22. Bxc6 {[%emt 0:02:40]} bxc6 {[%emt 0:00:04]} 23. Qxc6 {
[%emt 0:00:06]} Rac8 {[%emt 0:01:42]} 24. Qxd6 {[%emt 0:00:41]} Bf4 {[%emt 0:
00:00]} 25. Kf1 {[%emt 0:02:43]} Rgd8 {[%emt 0:02:05]} 26. Qa6 {[%emt 0:00:17]}
Bxh2 {[%emt 0:00:32]} 27. g3 {[%emt 0:01:02]} Bxg3 {[%emt 0:00:08]} 28. Re4 {
[%emt 0:00:06]} Qh1+ {[%emt 0:00:06]} 29. Ke2 {[%emt 0:00:06]} Qxe4+ {[%emt 0:
00:03]} 30. Kf1 {[%emt 0:00:00]} Rc6 {[%emt 0:00:07]} 0-1